[Event "Portuguese Team Blitz-ch 2022"]
[Site "Viseu"]
[Date "2022.06.12"]
[Round "1.1"]
[White "Veiga, Jose Francisco R P N"]
[Black "Andias, Joao Pedro Menezes"]
[Result "1-0"]
[ECO "B40"]
[WhiteElo "2377"]
[BlackElo "2064"]
[Annotator "TA"]
[PlyCount "57"]
[EventDate "2022.06.12"]
[EventType "team-tourn"]
[EventCountry "POR"]
[SourceTitle "playchess.com"]
[Source "ChessBase"]
[SourceQuality "1"]
[TimeControl "180+2"]

{[%evp 9,57,0,62,61,81,65,75,65,66,60,62,64,53,55,61,36,52,52,52,52,60,61,59,51,63,37,54,47,37,49,46,34,65,0,32,29,46,7,13,-48,-49,-47,-50,-63,577,553,619,619,2217,2123]} 1. e4 {[%emt 0:00:01]} c5 {[%emt 0:00:01]} 2. Nf3 {[%emt 0:00:01]} e6 {[%emt 0:00:02]} 3. b3 {[%emt 0:00:10]} d6 {[%emt 0:00:06]} 4. Bb2 {[%emt 0:00:02]} e5 {[%emt 0:00:20]} 5. c3 {[%emt 0:00:05]} Nc6 {[%emt 0:00:04]} (5... f5 $11) 6. d4 $14 {[%emt 0:00:04] [#] B50: Sicilian: 2...d6, Miscellaneous.} Qc7 $146 {[%emt 0:00:18]} ({Predecessor:} 6... Be7 7. dxc5 dxc5 8. Qxd8+ Bxd8 9. Nbd2 Bc7 10. Rd1 Nge7 11. Nc4 Be6 12. Ba3 b5 {1-0 (54) Kakumanu,K (2367)-Petersson,B (2199) Stockholm 2018}) 7. d5 {[%emt 0:00:24]} Nce7 {[%emt 0:00:16]} 8. Bb5+ {[%emt 0:00:01] White is better.} Bd7 {[%emt 0:00:02]} 9. Bxd7+ {[%emt 0:00:02]} Qxd7 {[%emt 0:00:02]} 10. c4 {[%emt 0:00:01]} Nf6 {[%emt 0:00:29]} 11. Nc3 {[%emt 0:00:02]} a6 {[%emt 0:00:03]} 12. a4 {[%emt 0:00:09]} Ng6 {[%emt 0:00:04]} 13. O-O {[%emt 0:00:04]} Be7 {[%emt 0:00:02][%cal Bf8e7,Be7d8,Bd8a5][%mdl 32]} 14. Ne1 {[%emt 0:00:19]} Bd8 {[%emt 0:00:18]} 15. Nd3 {[%emt 0:00:17]} Ba5 {[%emt 0:00:27]} 16. Qe2 {[%emt 0:00:02]} O-O {[%emt 0:00:29]} 17. f3 {[%emt 0:00:12][%cal Bf2f3,Bf3e4][%mdl 32]} Nh5 {[%emt 0:00:11]} 18. g3 {[%emt 0:00:06]} Bxc3 {[%emt 0:00:14]} 19. Bxc3 {[%emt 0:00:01]} f5 $1 {[%emt 0:00:01]} 20. exf5 {[%emt 0:00:31]} Qxf5 {[%emt 0:00:07]} 21. Qe4 {[%emt 0:00:01] White is more active.} (21. b4 $14) 21... Qxe4 {[%emt 0:00:01]} (21... Qg5 $5 {[%cal Rh5g3]} 22. Rf2 Rae8 $11) 22. fxe4 {[%emt 0:00:00]} Nf6 {[%emt 0:00:01]} 23. Rae1 {[%emt 0:00:18]} b5 {[%emt 0:00:02]} 24. axb5 {[%emt 0:00:29]} (24. Nf2 $11) 24... axb5 $15 {[%emt 0:00:01]} 25. cxb5 {[%emt 0:00:01]} Ra3 {[%emt 0:00:02]} 26. Nc1 {[%emt 0:00:16]} Nxe4 $2 {[%emt 0:00:04][%mdl 8192]} 27. Rxf8+ $18 {[%emt 0:00:03] White is clearly winning.} Nxf8 {[%emt 0:00:01]} 28. Rxe4 {[%emt 0:00:01] [#] aiming for Ra4.} Ng6 {[%emt 0:00:02]} 29. Ra4 {[%emt 0:00:02] Weighted Error Value: White=0.14 (very precise) /Black=0.49} 1-0

[Event "Portuguese Team Blitz-ch 2022"]
[Site "Viseu"]
[Date "2022.06.12"]
[Round "1.2"]
[White "Fernandes, Tiago Saraiva"]
[Black "Martins, Bruno Andre Leite"]
[Result "0-1"]
[ECO "B10"]
[WhiteElo "1950"]
[BlackElo "2327"]
[Annotator "TA"]
[PlyCount "132"]
[EventDate "2022.06.12"]
[EventType "team-tourn"]
[EventCountry "POR"]
[SourceTitle "playchess.com"]
[Source "ChessBase"]
[SourceQuality "1"]
[TimeControl "180+2"]

{[%evp 9,132,23,12,0,0,-1,20,20,36,45,54,28,77,87,85,107,156,151,210,139,125,-290,-282,-299,-200,-183,-168,-173,-207,-205,-128,-141,104,0,78,85,95,89,97,-492,-120,-141,186,-385,-360,-457,-360,-451,0,-322,53,-82,92,77,71,98,109,107,217,91,87,24,16,0,8,-175,-170,-269,-83,-54,-29,-307,-257,-245,-202,-245,-235,-250,-252,-257,-45,-177,-12,-13,-13,-16,-12,-37,-16,-66,-66,-994,-983,-772,-942,-29973,-29974,-5303,-841,-677,-655,-4911,-500,-29977,-29978,-29968,-4056,-29938,-7528,-5065,-4627,-4614,-8,-29979,-29980,-29980,-29981,-29981,-653,-29982,-29983,-29994,-29994,-29996,-29997]} 1. e4 c6 2. Bc4 d5 3. Bb3 Nf6 4. e5 Nfd7 5. d4 e6 6. Qg4 {B10: Caro-Kann: 2 d3 and 2 c4.} c5 7. c3 $1 Nc6 {[#]} 8. Nf3 $146 {The position is equal.} ({Predecessor:} 8. Ne2 Qb6 9. O-O h5 10. Qh4 Be7 11. Qg3 g6 12. Rd1 Qb5 13. Kf1 b6 14. Bc2 {0-1 (34) Skoloud,B-Fedotov,K (2017) Pardubice 2018}) 8... a5 9. O-O a4 10. Bc2 cxd4 (10... b5 $11 {should be considered.}) 11. cxd4 $16 Nb4 12. Bd1 Nd3 (12... h5 $142 13. Qg3 b5) 13. Bg5 Qb6 (13... Qc7 $16) 14. Nc3 Qxb2 {[#]} 15. Be2 $2 {[%mdl 8192]} Qxc3 $19 16. Bd2 Qa3 17. Ng5 Be7 18. Nxf7 Kxf7 19. Qf3+ Ke8 {[%cal Od3e5]} 20. Bxd3 Bf8 $2 (20... Nb8 $1 $17 {Hoping for ...Nc6.} 21. Bc1 Qb4) 21. Qh5+ (21. Rac1 $16) 21... g6 (21... Kd8 $1 $11 {keeps the balance.} 22. Bb5 Qb2 23. Bg5+ Be7 24. Bxe7+ Kxe7) 22. Bxg6+ $1 $16 hxg6 23. Qxg6+ Kd8 24. Bg5+ {[%mdl 8192]} (24. Bc1 $1 $16 {[%cal Rc1a3] is necessary to keep the advantage.} Qb4 25. Bg5+ Kc7 26. Rac1+ Bc5 27. Qxe6) 24... Kc7 $2 (24... Be7 $19 {is more deadly.} 25. Qg7 Rf8) 25. Rfc1+ Kb8 $2 {[%mdl 8192] [#]} (25... Kb6 $1 $17 {[%cal Rb6a7] keeps the pressure on. And now ...Ka7 would win.} 26. Qxe6+ Ka7 27. Qxd5 Qd3) 26. Qxe6 $4 {[%mdl 8192]} (26. Rxc8+ $1 $18 {[%mdl 512] is the narrow road to win.} Ka7 27. Rxa8+ Kxa8 28. Qxe6) 26... Bb4 $19 27. Qxd5 Ra5 28. Qc4 {[%cal Og5e7]} Ra6 $2 (28... Nb6 $1 $19 {[%cal Rb6c4]} 29. Qc7+ Ka7) 29. Be3 $2 {[%mdl 8192]} (29. Rab1 $11 {and White stays safe.} Nb6 30. Qxb4 Qxb4 31. Rxb4) 29... Be7 $2 ({Wrong is} 29... Rc6 $2 30. Qb5 Bc3 31. Rab1 $19) (29... Ba5 $19 30. Rab1 Nb6) 30. d5 (30. Rab1 $1 $14 {was forced to keep a grip.} Ka8 31. d5) 30... Bc5 $2 31. Bxc5 $16 Qxc5 32. Qxc5 Nxc5 33. Rxc5 Re8 (33... Rb6 $16 {was worth a try.}) 34. e6 (34. f4 $1 $18 {and White stays clearly on top.}) 34... Rd6 35. Rac1 (35. Rb1 $16) 35... b6 $11 36. Rb5 Bb7 37. Rd1 (37. f4 $11) 37... Rexe6 $1 $19 {[%cal Ob7d5][%mdl 64] Pin} 38. h3 (38. h4 $142) 38... Re5 $2 (38... Re2 $19 39. Ra1 Rd2) 39. Rb4 $17 Rexd5 40. Re1 {[%mdl 8192]} (40. Rxd5 $11 {and White is okay.} Bxd5 41. Rxa4) 40... Rd1 41. Rxd1 Rxd1+ $19 {[%mdl 4096] Endgame KRB-KR} 42. Kh2 Bc6 43. Rxb6+ Kc7 44. Rb2 Rd3 $2 (44... Ra1 $19 {...Bd5 is the strong threat.} 45. Rd2 Be8) 45. f3 ({White should try} 45. h4 $15) 45... a3 $2 (45... Bd5 $19 {Strongly threatening ...Ra3.} 46. h4 Ra3) 46. Rc2 $11 Kd6 47. Kg3 Bd5 48. Kf4 Be6 49. g4 (49. h4 $11) 49... Bd5 $15 {Black is more active.} 50. Rf2 {[%mdl 8192]} (50. h4 $15) 50... Rd1 $19 51. h4 Ra1 52. g5 Rxa2 53. Rf1 Rg2 (53... Rb2 $142 54. Ra1 a2) 54. h5 a2 55. g6 Rf2 56. Rd1 (56. Ra1 $19 Ke6 57. h6) 56... Rxf3+ 57. Kg5 Rg3+ (57... Rb3 $142 58. g7 Ke7 $1 59. Rc1 Rb1 60. Rc7+ Ke8 61. Ra7 a1=Q 62. g8=Q+ Bxg8 63. Rxa1 Rxa1 64. Kf4 Re1 65. Kg4 Kf7 66. Kg3 Kf6 67. Kf4 Bh7 68. Kg3 Re4 69. Kf3 Kg5 70. Kg3 Re3+ 71. Kg2 Kf4 72. h6 Re2+ 73. Kf1 Bd3 74. Kg1 Kg3 75. Kf1 Re8+ 76. Kg1 Re1#) 58. Kh6 Rb3 (58... Ke5 $142 59. g7 Be6 60. Kh7 Bf5+ 61. Kh6 Rxg7 $3 {[%mdl 512]} 62. Kxg7 Bb1 63. Re1+ Kf4 64. Rf1+ Ke3 65. Re1+ Kd2 66. Rf1 a1=Q+ 67. Kf8 Qh8+ 68. Ke7 Qxh5 $1 69. Rf7 Bg6 70. Rf6 Qg5 71. Ke6 Bb1 72. Rf1 Qg4+ 73. Kf6 Qd4+ 74. Kg5 Qe5+ 75. Kh4 Qh2+ 76. Kg5 Qg2+ 77. Kf6 Qxf1+ 78. Ke6 Qf5+ 79. Kd6 Qf6+ 80. Kc7 Bf5 81. Kb7 Qd6 82. Ka8 Be4+ 83. Ka7 Qc7+ 84. Ka6 Bd3#) 59. g7 Rg3 60. Kh7 Ke5 $2 (60... Ke7 $19 {( -> ...Be4+)} 61. Re1+ Kf6 62. Rf1+ Kg5) 61. h6 $2 {[%mdl 8192] [#]} (61. Kh8 $11) 61... Be4+ $1 62. Kh8 Bb1 63. g8=Q Rxg8+ 64. Kxg8 a1=Q {Black mates.} 65. Rd8 Qa2+ 66. Kh8 Qf7 {A wild game.  Weighted Error Value: White=1.22/Black=1.22} 0-1

[Event "Portuguese Team Blitz-ch 2022"]
[Site "Viseu"]
[Date "2022.06.12"]
[Round "1.3"]
[White "Rego, Pedro Filipe"]
[Black "Santos, Ricardo"]
[Result "1-0"]
[ECO "A45"]
[WhiteElo "2251"]
[BlackElo "2088"]
[Annotator "TA"]
[PlyCount "87"]
[EventDate "2022.06.12"]
[EventType "team-tourn"]
[EventCountry "POR"]
[SourceTitle "playchess.com"]
[Source "ChessBase"]
[SourceQuality "1"]
[TimeControl "180+2"]

{[%evp 9,87,36,70,26,27,15,25,20,8,30,110,0,10,-20,0,0,-8,-22,0,-87,-120,-135,-117,-69,-92,-168,-172,-393,-393,-685,-541,-656,-374,-1093,-62,-314,-264,-2059,-1983,-29991,-960,-958,-956,-765,-141,-125,-21,-31,-61,-64,0,-481,105,0,21,15,43,53,25,36,118,35,137,178,168,159,330,327,300,201,196,204,201,133,225,216,244,223,222,200]} 1. d4 {[%emt 0:00:04]} Nf6 {[%emt 0:00:03]} 2. Bf4 {[%emt 0:00:00]} g6 {[%emt 0:00:08]} 3. Nc3 {[%emt 0:00:02]} Bg7 {[%emt 0:00:03]} 4. e4 {[%emt 0:00:01]} d6 5. Qd2 c6 {[%emt 0:00:05]} 6. f3 {[%emt 0:00:07] White is more active. B07: Pirc Defence: Miscellaneous Systems.} b5 {[%emt 0:00:04][%cal Bb7b5,Bb5b4][%mdl 32]} 7. O-O-O {[%emt 0:00:20]} Qa5 {[%emt 0:00:14]} 8. Kb1 {[%emt 0:00:02] White has an edge.} b4 {[%emt 0:00:01] Prevents a3.} 9. Nce2 {[%emt 0:00:02]} O-O {[%emt 0:00:09] [#]} (9... c5 $11) 10. Nc1 $146 {[%emt 0:00:03]} (10. Bh6 $1 $16) ({Predecessor:} 10. Bh6 e5 11. Nc1 Be6 12. Nge2 Nbd7 13. h4 Nb6 14. Nb3 Qa4 15. h5 Nc4 16. Qc1 a5 17. hxg6 fxg6 18. Bxg7 Kxg7 {0-1 (33) Hambleton,A (2454)-Iturrizaga Bonelli,E (2595) Chess.com INT 2022}) 10... c5 $11 {[%emt 0:00:32]} 11. Nb3 {[%emt 0:00:26]} Qb6 {[%emt 0:00:02]} 12. dxc5 {[%emt 0:00:27]} dxc5 {[%emt 0:00:03]} 13. Be3 {[%emt 0:00:01]} Nfd7 {[%emt 0:00:24]} 14. Qf2 {[%emt 0:00:30]} (14. Nh3 $11 {keeps the balance.}) 14... Qf6 $17 {[%emt 0:00:26][%csl Gg7][%cal Rf6b2]} 15. Bc1 {[%emt 0:00:01]} a5 $1 {[%emt 0:00:26][%cal Ba7a5,Ba5a4,Ba4a3,Ba3b2][%mdl 32]} 16. Nxc5 {[%emt 0:00:09]} a4 {[%emt 0:00:17] White must now prevent ...a3.} 17. f4 {[%emt 0:00:17]} (17. Nxd7 $17 {is a better defense.} Bxd7 18. f4) 17... a3 $1 $19 {[%emt 0:00:14][%cal Ra3b2]} 18. Bc4 $2 {[%emt 0:00:32]} (18. e5 Nxe5 19. Qd4) 18... axb2 {[%emt 0:00:10]} 19. Be3 {[%emt 0:00:08]} (19. Bd2 Nxc5 20. Qxc5) 19... Nxc5 {[%emt 0:00:08]} 20. Bxc5 {[%emt 0:00:01]} Qc6 {[%emt 0:00:03]} 21. Bd5 $2 {[%emt 0:00:10] [#]} (21. Rd5 Be6 22. Bb3) 21... Qa4 $2 {[%emt 0:00:02]} (21... Be6 $1 $19 {( -> ...Bxd5)} 22. Bd4 Bxd5 23. Bxg7 Bxa2+ 24. Kxb2 Kxg7) 22. Bxa8 {[%emt 0:00:03][%mdl 8192]} ({White must play} 22. Bb3 $1 $15 Qa5 23. f5) 22... Qxa8 {[%emt 0:00:03]} 23. Bd4 $2 {[%emt 0:00:03]} (23. Bxb4 Qxe4 24. a3) 23... Be6 {[%emt 0:00:01][%csl Ge6][%cal Ra8a2]} 24. Kxb2 {[%emt 0:00:09]} Qxa2+ (24... Qa3+ $142 25. Kb1 Bxa2+ 26. Ka1 Bxd4+ 27. Rxd4 Nc6 28. Rd3 b3 29. Rxb3 Qc1+ 30. Kxa2 Ra8+ 31. Qa7 Rxa7+ 32. Ra3 Rxa3#) 25. Kc1 Qa3+ {[%emt 0:00:03]} ({Not} 25... Bxd4 $2 26. Qxd4 b3 27. Qb2 bxc2 28. Rd3 $19) 26. Kd2 {[%emt 0:00:03]} Nc6 $2 {[%emt 0:00:01]} (26... Rd8 $19 {has better winning chances.} 27. Ke1 Bxd4) 27. Bxg7 $17 {[%emt 0:00:02]} Rd8+ {[%emt 0:00:02]} (27... Kxg7 $17 28. Qc5 Rd8+ 29. Ke1 Rxd1+ 30. Kxd1 Bg4+ 31. Kd2 Qa1 32. Qxc6 Qd1+ 33. Ke3 Qe1+ 34. Kd4 Qf2+ 35. Kc4 Qxg2) 28. Ke1 $11 {[%emt 0:00:04] Strongly threatening Rxd8+.} Rxd1+ {[%emt 0:00:02]} 29. Kxd1 {[%emt 0:00:01][%cal Of4f5]} Kxg7 {[%emt 0:00:03]} (29... b3 $1 $15 30. cxb3 Bxb3+ 31. Kd2 Kxg7) 30. Ne2 $2 {[%emt 0:00:01][%mdl 8192]} (30. Qd2 $1 $11 {and White stays safe.}) 30... Bc4 $2 {[%emt 0:00:03]} (30... Qa1+ $19 31. Kd2 Qxh1) 31. Nc1 {[%emt 0:00:01]} (31. Qc5 $16 Na5 32. Nc1 (32. Qxe7 Qa1+ 33. Kd2 Qxh1 $17)) 31... e5 {[%emt 0:00:02]} 32. fxe5 {[%emt 0:00:02] aiming for Qf6+.} Nxe5 {[%emt 0:00:01]} 33. Qd4 {[%emt 0:00:01] Against Qa1} f6 {[%emt 0:00:02]} 34. Re1 {[%emt 0:00:06]} Be6 {[%emt 0:00:03]} (34... h5 $14) 35. Re3 {[%emt 0:00:02]} (35. Nd3 $16 Nxd3 36. cxd3) 35... Bg4+ {[%emt 0:00:02] [#]} ({Black should play} 35... Qa6 $1 $14 36. Ke1 Bc4) 36. Kd2 $1 $16 {[%emt 0:00:02]} Qa6 {[%emt 0:00:01]} 37. Ke1 {[%emt 0:00:03] Prevents Qf1+. And now Nd3 would win.} Qb5 {[%emt 0:00:03]} (37... Qa5 $16 {keeps fighting.}) 38. Nd3 $18 {[%emt 0:00:02]} Nxd3+ {[%emt 0:00:04]} 39. Qxd3 {[%emt 0:00:01] KQR-KQB} Qc5 {[%emt 0:00:03] White is clearly better.} 40. h3 {[%emt 0:00:02]} Be6 {[%emt 0:00:02]} 41. Kf2 {[%emt 0:00:01]} Bc4 {[%emt 0:00:02]} (41... f5 $16 {was necessary.}) 42. Qd7+ {[%emt 0:00:01]} Kh6 {[%emt 0:00:00]} 43. Qd2 {[%emt 0:00:01]} g5 {[%emt 0:00:02]} 44. Kg1 {[%emt 0:00:02] What a bad dream for Black.  Weighted Error Value: White=1.02/Black=0.80} 1-0

[Event "Portuguese Team Blitz-ch 2022"]
[Site "Viseu"]
[Date "2022.06.12"]
[Round "1.4"]
[White "BOULHLIB ABDELKHALEK"]
[Black "Silva, Miguel Antonio Neto"]
[Result "0-1"]
[ECO "B54"]
[WhiteElo "1710"]
[BlackElo "2215"]
[Annotator "TA"]
[PlyCount "64"]
[EventDate "2022.06.12"]
[EventType "team-tourn"]
[EventCountry "POR"]
[SourceTitle "playchess.com"]
[Source "ChessBase"]
[SourceQuality "1"]
[TimeControl "180+2"]

{[%evp 13,64,34,36,25,54,66,59,51,77,73,93,62,74,68,69,74,61,63,48,71,89,64,64,13,105,7,17,9,52,54,50,-264,-252,-347,-153,-147,-141,-127,-145,-118,-77,-286,-281,-607,-599,-583,-596,-572,-565,-1413,-1394,-5531,-4600]} 1. e4 c5 2. Nf3 d6 3. d4 cxd4 4. Nxd4 Nf6 5. f3 a6 6. c4 e6 7. Nc3 Be7 8. Be3 {B55: Sicilian: 2...d6 3 d4 cxd4 4 Nxd4 Nf6 5 f3.} b6 9. Qd2 Bb7 10. Be2 {White is slightly better.} Nbd7 11. O-O-O Rc8 12. Kb1 Ne5 13. b3 {[#]} Qc7 $146 ({Predecessor:} 13... O-O 14. g4 d5 15. g5 Ne8 16. exd5 exd5 17. Nf5 Bb4 {1-0 (37) Demchenko,A (2654)-Arabidze,M (2432) Chess.com INT 2022}) 14. g4 b5 {[%cal Rb5c4]} 15. g5 Nfd7 {[%cal Rb5c4]} 16. f4 Nc6 17. Nxc6 Qxc6 18. h4 (18. Bd4 $14) 18... b4 {[#]} (18... Qc7 $11 {keeps the balance.}) 19. Na4 (19. Nd5 $1 $16 {[%cal Rd5e7][%mdl 512]}) 19... Qxe4+ $11 20. Bd3 Qc6 21. h5 a5 22. g6 $2 {[%mdl 8192]} (22. Qb2 $14 {stays ahead.} e5 23. Bf5) 22... hxg6 $19 23. Rh2 Nf6 ({Don't go for} 23... gxh5 $2 24. Bd4 $19) (23... Rxh5 $19 {...Nc5 is the strong threat.} 24. Bc2 Rxh2 25. Qxh2 Bf6) 24. hxg6 $17 Rxh2 25. gxf7+ Kxf7 26. Qxh2 Qg2 {Prevents Qg3.} 27. Qh4 {[#]} (27. Qxg2 $17 {might work better.} Bxg2 28. Bb6) 27... Be4 $19 28. Rd2 {Against Qe2} (28. Qf2) 28... Qf1+ {Black is clearly winning.} 29. Kc2 Bxd3+ 30. Rxd3 d5 31. c5 Qe2+ 32. Bd2 Bxc5 {Weighted Error Value: White=1.06/Black=0.25 (precise)} 0-1

[Event "Portuguese Team Blitz-ch 2022"]
[Site "Viseu"]
[Date "2022.06.12"]
[Round "1.5"]
[White "Padeiro, Jose"]
[Black "Pereira, Ruben"]
[Result "1-0"]
[ECO "B23"]
[WhiteElo "2207"]
[BlackElo "2436"]
[Annotator "TA"]
[PlyCount "57"]
[EventDate "2022.06.12"]
[EventType "team-tourn"]
[EventCountry "POR"]
[SourceTitle "playchess.com"]
[Source "ChessBase"]
[SourceQuality "1"]
[TimeControl "180+2"]

{[%evp 11,57,0,0,0,0,-2,0,-4,0,-7,31,27,75,79,85,65,78,79,114,105,97,106,112,118,174,121,169,152,155,147,170,160,210,166,316,313,313,319,807,786,2023,1834,29992,29993,29993,29994,29994,29995]} 1. e4 c5 2. Nc3 d6 3. f4 Nc6 4. Nf3 g6 5. Bc4 Bg7 6. O-O e6 7. d4 $1 {[%mdl 4] is now more promising than 7.d3. B23: Closed Sicilian: Lines without g3.} cxd4 8. Nb5 Nge7 9. Bb3 {The position is equal.} ({Much weaker is} 9. Nfxd4 d5 10. exd5 exd5 $15) 9... O-O 10. Nbxd4 d5 11. e5 {[#]} Nf5 $146 (11... Bd7 $11) ({Predecessor:} 11... Bd7 12. Be3 Rc8 13. Kh1 Na5 14. Qe1 Nc4 15. Bc1 b5 16. c3 a5 17. a3 Qc7 {1-0 (47) Janaszak,D (2348)-Korobov,A (2683) Chess.com INT 2021}) 12. Nxf5 $16 gxf5 13. c3 f6 14. exf6 Qxf6 15. Be3 Bd7 16. Qd2 Rad8 17. Rae1 Bc8 (17... Qe7 $16 {is a better defense.}) 18. Nd4 (18. Ba4 $18) 18... Na5 (18... Qe7 $16) 19. Qe2 Nxb3 20. axb3 a6 21. Nf3 Qg6 (21... Qh6 $16 {might work better.} 22. Qd2 Qg6) 22. Bd4 Rf7 (22... Bxd4+ {was worth a try.} 23. Nxd4 Qf6) 23. Ne5 $18 Bxe5 24. Qxe5 {[%csl Gd4][%cal Re5h8] [#]} Kf8 $2 (24... Rg7 25. Re2 Qf7) 25. Rf3 {[%cal Bf1f3,Bf3g3,Bg3g8][%mdl 32] Rg3 is the strong threat.} Ke7 26. Rg3 Qf6 27. Bc5+ {White mates.} Ke8 28. Rg8+ Rf8 29. Qxf6 {Black did not feel at home in the position after the opening.  Weighted Error Value: White=0.07 (flawless) /Black=0.51} 1-0

[Event "Portuguese Team Blitz-ch 2022"]
[Site "Viseu"]
[Date "2022.06.12"]
[Round "1.6"]
[White "Fidalgo, Andre Neves"]
[Black "Monteiro, Paulo Alexandre G"]
[Result "0-1"]
[ECO "B76"]
[WhiteElo "2261"]
[BlackElo "1983"]
[Annotator "TA"]
[PlyCount "72"]
[EventDate "2022.06.12"]
[EventType "team-tourn"]
[EventCountry "POR"]
[SourceTitle "playchess.com"]
[Source "ChessBase"]
[SourceQuality "1"]
[TimeControl "180+2"]

{[%evp 30,72,12,0,0,-86,-90,-91,-90,-91,-93,-83,-15,-22,-13,-13,-12,-13,0,0,4,-39,-31,-91,-52,-49,-28,-60,-6,-77,-91,-152,-64,-235,-58,-50,-50,-67,-67,-127,-67,-486,-58,-29997,201]} 1. e4 {[%emt 0:00:01]} c5 {[%emt 0:00:02]} 2. Nf3 {[%emt 0:00:01]} d6 {[%emt 0:00:01]} 3. d4 {[%emt 0:00:01]} cxd4 {[%emt 0:00:01]} 4. Nxd4 {[%emt 0:00:00]} Nf6 5. Nc3 g6 {[%emt 0:00:04]} 6. Be3 {[%emt 0:00:04]} Bg7 {[%emt 0:00:01]} 7. f3 {[%emt 0:00:03]} O-O {[%emt 0:00:03]} 8. Qd2 {[%emt 0:00:01]} Nc6 {[%emt 0:00:01]} 9. O-O-O {[%emt 0:00:08]} d5 {[%emt 0:00:01]} 10. Nxc6 {[%emt 0:00:30]} bxc6 {[%emt 0:00:01]} 11. exd5 {[%emt 0:00:01]} cxd5 {[%emt 0:00:06]} 12. Nxd5 {[%emt 0:00:01]} Nxd5 {[%emt 0:00:01]} 13. Qxd5 {[%emt 0:00:01]} Qc7 {[%emt 0:00:01]} 14. Qc5 Qb7 15. Qa3 {[%emt 0:00:04]} Bf5 {[%emt 0:00:13]} 16. Bd3 {[%emt 0:00:54]} Rab8 {[%emt 0:00:09][%cal Rg7b2] B76: Sicilian Dragon: Yugoslav Attack, 9 g4 and 9 0-0-0.} 17. c3 {[%emt 0:00:01] [#]} (17. b3 $1 $11) 17... Bxc3 $1 $17 {[%emt 0:00:37]} 18. bxc3 {[%emt 0:00:59] aiming for Bxf5.} (18. Qxc3 $2 Rfc8 19. Bc4 (19. Bc5 $2 Rxc5 20. Bc4 Rxc4 $19) 19... Rxc4 $1 {[%mdl 512]} 20. Rd8+ Rxd8 $19) 18... Bxd3 {[%emt 0:00:06] Black is better.} 19. Kd2 {[%emt 0:00:02][%cal Bc1d2,Bd2e1,Be1f2,Bf2g3][%mdl 32]} Rfd8 {[%emt 0:00:56]} 20. Ke1 {[%emt 0:00:02] [#] Prevents Bf1.} Bc4 $146 {[%emt 0:00:40] Black is more active.} (20... Qb2 $17 {( -> ...Qe2#)} 21. Qxb2 Rxb2) ({Predecessor:} 20... Qb2 21. Qxb2 Rxb2 22. Rd2 Rb1+ 23. Rd1 Rxd1+ 24. Kxd1 Bf1+ 25. Kc1 Bxg2 26. Re1 Bxf3 27. Bxa7 {0-1 (51) Kowalski,M (1933)-Rook,D (2145) GER email 2011}) 21. Kf2 $11 {[%emt 0:00:16]} Qb2+ {[%emt 0:00:23]} 22. Qxb2 {[%emt 0:00:01]} Rxb2+ {[%emt 0:00:01]} 23. Kg3 {[%emt 0:00:00]} Rdb8 {[%emt 0:00:13]} 24. Bxa7 {[%emt 0:00:02]} Ra8 $36 {[%emt 0:00:02][%mdl 2048] Black has some pressure.} 25. Bc5 {[%emt 0:00:13]} (25. Rd7 $5 {[%cal Rd7e7]}) 25... Raxa2 {[%emt 0:00:02]} 26. Rd8+ {[%emt 0:00:02]} Kg7 {[%emt 0:00:01]} 27. Rg1 {[%emt 0:00:18]} Kf6 {[%emt 0:00:04]} 28. Rd7 {[%emt 0:00:03]} e6 {[%emt 0:00:05]} (28... e5 $15) 29. Bd4+ {[%emt 0:00:03]} (29. Be7+ $11 Kg7 30. Rc7) 29... e5 $17 {[%emt 0:00:01]} 30. Bc5 {[%emt 0:00:01] [#]} (30. Be3 $142) 30... h5 {[%emt 0:00:01]} (30... Bf1 $1 $17 {[%mdl 512]} 31. Rd1 (31. Rxf1 $2 {is a self mate.} Rxg2+ 32. Kh3 Rxh2+ 33. Kg4 Rag2#) 31... Rxg2+ 32. Rxg2 Rxg2+ 33. Kh3 Rg1+ 34. Kh4 g5+ 35. Kh5 Rh1) 31. Bb4 $2 {[%emt 0:00:07] [#]} (31. h4 $15) 31... Kg5 $2 {[%emt 0:00:01]} (31... Bf1 $1 $19 {[%mdl 512]} 32. Rd1 (32. Rxf1 $2 {gets mated.} Rxg2+ 33. Kh3 Rxh2+ 34. Kg3 Rag2#) 32... Bxg2) 32. h4+ {[%emt 0:00:01]} Kf6 {[%emt 0:00:02]} 33. Rd6+ {[%emt 0:00:01]} Kf5 {[%emt 0:00:01]} 34. Rd7 {[%emt 0:00:03]} (34. Rdd1 $15) 34... f6 {[%emt 0:00:01]} ({Black should try} 34... g5 $1 $17 {Threatens to win with ...gxh4+.} 35. hxg5 h4+ 36. Kxh4 Rxg2 37. Rxg2 Rxg2) 35. Be7 $2 {[%emt 0:00:04][%mdl 8192] [#]} ({White should play} 35. Rdd1 $15) 35... Bf1 $2 {[%emt 0:00:02]} (35... Ke6 $1 $19 {[%cal Re6d7]} 36. Rc7 {[#]} Bf1 $1 {[%mdl 512]}) 36. Rxf1 $4 {[%emt 0:00:02][%mdl 8192]} (36. Rd1 $15 Ke6 37. Bc5) 36... Rxg2+ {[%emt 0:00:01][%mdl 32768] Weighted Error Value: White=0.93/Black=0.70. Loss on time!?} 0-1